Workbook

Sheet Семинар16-23.06.2024
A1: Условия размещения | B1: Стандарт 1-местный | C1: Комфорт 1-местный | D1: Комфорт 1 место в 2-х мест.
A2: Семинар (обучение) 3 дня 48 час | B2: 30000 | C2: 30000 | D2: 30000
A3: Культурная программа | B3: 10800 | C3: 10800 | D3: 10800
A4: Всего услуги ЦФЭ | B4: =SUM(B2:B3) -> 40800 | C4: =SUM(C2:C3) -> 40800 | D4: 40800
A5: Сочи-Магнолия (только номер) 7 ночей | B5: =5500*7 -> 38500 | C5: =6100*7 -> 42700 | D5: =C5/2 -> 21350
A6: Стоимость с размещением в гостинице | B6: =SUM(B4:B5) -> 79300 | C6: =SUM(C4:C5) -> 83500 | D6: =SUM(D4:D5) -> 62150
A7: Доплата завтрак (тариф "Бизнес-1") | B7: =700*7 -> 4900 | C7: =700*7 -> 4900 | D7: =700*7 -> 4900
A8: Стоимость с размещением и завтраком | B8: =SUM(B6:B7) -> 84200 | C8: =SUM(C6:C7) -> 88400 | D8: 67050
A9: Завтрак + ужин (тариф "Бизнес-2") | B9: =1500*7 -> 10500 | C9: =1500*7 -> 10500 | D9: 10500
A10: Стоимость с размещением и 2-раз.питанием | B10: =B6+B9 -> 89800 | C10: =C6+C9 -> 94000 | D10: 72650
